Cogmind - Beta 11.1 @@@ ROGUE MODE // 2022.09.03 @ 03:29:44 Player: Okkudo Result: Destroyed by Y-54 Guardian with Flak Gun Performance ------------- Evolutions (3) 1500 Regions Visited (6) 1200 Robots Destroyed (19) 95 Value Destroyed (568) 568 Prototype IDs (4) 80 Alien Tech Used (0) 0 Bonus (300) 300 TOTAL SCORE: 3743 Bonus ------- Aligned with FarCom 300 Cogmind --------- Core Integrity 0/700 Matter 300/300 Energy 100/100 System Corruption 0% Temperature Cool (12) Movement Core (50) Location -7/Factory Parts ------- > --- POWER (2) -------- (None) > --- PROPULSION (3) --- (None) > --- UTILITY (6) ------ Hacking Suite > --- WEAPON (2) ------- (None) > --- INVENTORY (5) ---- Enhanced Autogun Heavy Rocket Launcher Field Lobotomy Kit (5) Mining Laser Great Maul Peak State ------------ > --- POWER ------------ Ion Engine Deuterium Engine > --- PROPULSION ------- Aluminum Leg Carbon-fiber Leg Carbon-fiber Leg > --- UTILITY ---------- Medium Storage Unit Large Matter Pod Improved Targeting Computer Improved Medium Armor Plating Hacking Suite System Shield > --- WEAPON ----------- Enhanced Autogun Gauss Rifle > --- INVENTORY -------- Hardened Light Armor Plating Enhanced Autogun Enhanced Autogun Heavy Rocket Launcher Field Lobotomy Kit Mining Laser Great Maul Great Maul [Rating: 36] Favorites ----------- Power Ion Engine Engine Ion Engine Propulsion Aluminum Leg Leg Aluminum Leg Utility Small Storage Unit Storage Small Storage Unit Processor Improved Targeting Computer Hackware System Shield Protection Hardened Light Armor Plating Weapon Assault Rifle Energy Gun Small Laser Energy Cannon Guided Plasma Cannon Ballistic Gun Assault Rifle Ballistic Cannon Flak Cannon Launcher Grenade Launcher Special Weapon Field Lobotomy Kit Impact Weapon Great Maul Build | -11 -10 -10 -10 -9 -8 -7 ------- Run | Scr Mat Min Exi Min Mat Fac Slots Evolved 6 | . . . . . 4 2 Power 1 | . . . . . . 1 Propulsion 1 | . . . . . 1 . Utility 4 | . . . . . 3 1 Weapon . | . . . . . . . Parts Attached 41 | 7 6 6 7 1 8 6 Power 6 | 2 2 . . . 1 1 Engine 6 | 2 2 . . . 1 1 Core . | . . . . . . . Reactor . | . . . . . . . Propulsion 8 | 2 1 4 . . . 1 Treads . | . . . . . . . Leg 8 | 2 1 4 . . . 1 Wheel . | . . . . . . . Hover . | . . . . . . . Flight . | . . . . . . . Utility 13 | 1 3 . 3 1 3 2 Device . | . . . . . . . Storage 6 | 1 2 . 1 1 1 . Processor 1 | . . . . . . 1 Hackware 2 | . . . . . 2 . Protection 4 | . 1 . 2 . . 1 Artifact . | . . . . . . . Weapon 14 | 2 . 2 4 . 4 2 Energy Gun 1 | 1 . . . . . . Energy Cannon 1 | . . . 1 . . . Ballistic Gun 5 | 1 . 1 . . 2 1 Ballistic Cannon 2 | . . 1 . . 1 . Launcher 3 | . . . 2 . . 1 Special Weapon 1 | . . . 1 . . . Impact Weapon 1 | . . . . . 1 . Slashing Weapon . | . . . . . . . Piercing Weapon . | . . . . . . . Special Melee Weapon . | . . . . . . . Unidentified Prototypes 4 | . . . 3 . 1 . Parts Lost 13 | . 1 . . . . 12 Power 3 | . 1 . . . . 2 Propulsion 3 | . . . . . . 3 Utility 5 | . . . . . . 5 Weapon 2 | . . . . . . 2 Highest Loss Streak 12 | . 1 . . . . 12 To Critical Strikes . | . . . . . . . Average Slot Usage (%) 88 | . 89 99 87 100 77 84 Engine 12 | . 13 14 14 14 9 10 Leg 23 | . 28 27 28 28 18 17 Storage 14 | . 14 14 14 14 14 14 Hackware 4 | . . . . . 9 13 Protection 9 | . 4 14 7 14 9 6 Energy Gun 2 | . 14 . . . . . Ballistic Gun 10 | . 14 26 . . 2 12 Ballistic Cannon 4 | . . 1 14 14 6 . Launcher 4 | . . . 6 14 7 . Naked Turns . | . . . . . . . Heaviest Build 42 | 11 14 19 31 29 37 42 Greatest Support 40 | 20 20 25 25 25 25 40 Greatest Overweight (x) 7 | . . 4 1 1 1 7 Average Overweight (x) . | . . . . . 1 1 Largest Inventory Capacity 20 | 8 20 8 8 10 10 10 Average Capacity 8 | 6 8 8 8 9 10 9 Most Carried 9 | 5 8 8 8 6 9 9 Average Carried 5 | 2 5 7 6 5 4 7 Final Capacity 10 | 8 8 8 8 10 10 5 Final Carried 8 | 2 8 7 5 5 8 5 Class Distribution -------------------- 79% | Mutant 20% | Hacker-Mutant Dominant Class ---------------- Mutant | -10/Materials Mutant | -10/Mines Mutant | -10/Exiles Mutant | -9/Mines Mutant | -8/Materials Hacker-Mutant | -7/Factory Resources | -11 -10 -10 -10 -9 -8 -7 ----------- Run | Scr Mat Min Exi Min Mat Fac Matter Collected 926 | 258 210 70 . 128 230 30 Remotely . | . . . . . . . Salvage Created 656 | 70 302 94 . . 113 77 Parts 38 | 1 23 6 . . 5 3 Haulers Intercepted 2 | . . . . . 2 . Recyclers Shooed 1 | 1 . . . . . . Parts Field Recycled . | . . . . . . . Retrieved Matter . | . . . . . . . Parts Self-Destructed . | . . . . . . . Prevented . | . . . . . . . Kills | -11 -10 -10 -10 -9 -8 -7 ------- Run | Scr Mat Min Exi Min Mat Fac Combat Hostiles Destroyed 16 | . 9 2 . . 3 2 Guns 12 | . 9 2 . . . 1 Cannons 3 | . . . . . 3 . AOE 1 | . . . . . . 1 Classes Destroyed 5 | 1 2 . . . 2 . Hauler 2 | . . . . . 2 . Recycler 1 | 1 . . . . . . Swarmer 3 | . 3 . . . . . Grunt 12 | . 6 2 . . 2 2 Sentry 1 | . . . . . 1 . Best Kill Streak 4 | 1 4 2 . . 2 2 Combat Bots Only 4 | . 4 2 . . 2 2 Max Kills in Single Turn 1 | 1 1 1 . . 1 1 Gunslinging . | . . . . . . . Exploded 1 | . . . . . . 1 Melee . | . . . . . . . Uniques/NPCs Destroyed . | . . . . . . . Combat | -11 -10 -10 -10 -9 -8 -7 -------- Run | Scr Mat Min Exi Min Mat Fac Damage Taken 2560 | . 252 101 . . 192 2015 Core 764 | . 27 33 . . . 704 Absorbed by Shields . | . . . . . . . Redirected to Shielding 6 | . 3 3 . . . . Core Remaining (%) 92 | 100 . . . 76 100 . Volleys Fired 87 | 4 31 8 . . 30 14 Largest 2 | 1 2 2 . . 1 2 Hottest 60 | 20 60 40 . . 44 53 Shots Fired 139 | 4 62 16 . . 30 27 Gun 109 | 4 62 16 . . . 27 Cannon 30 | . . . . . 30 . Launcher . | . . . . . . . Special . | . . . . . . . Kinetic 108 | 4 31 16 . . 30 27 Thermal 31 | . 31 . . . . . Explosive . | . . . . . . . Electromagnetic . | . . . . . . . Robot Hit Streak 10 | 4 7 10 . . 9 9 Robot Miss Streak 7 | . 3 1 . . 7 2 Penetration Max . | . . . . . . . Secondary Targets . | . . . . . . . Shots Hit Robots 106 | 4 40 14 . . 28 20 Core Hits 49 | 2 17 4 . . 21 5 Critical Kills . | . . . . . . . Critical Parts Destroyed . | . . . . . . . Critical Strikes . | . . . . . . . Melee Attacks 1 | . . . . . 1 . Impact 1 | . . . . . 1 . Slashing . | . . . . . . . Piercing . | . . . . . . . Sneak Attacks . | . . . . . . . Combat Hostiles . | . . . . . . . Follow-up Attacks . | . . . . . . . Damage Inflicted 1754 | 48 478 177 . . 491 560 Guns 1051 | 48 473 177 . . . 353 Cannons 448 | . . . . . 448 . Explosions 207 | . . . . . . 207 Melee 43 | . . . . . 43 . Ramming 5 | . 5 . . . . . Kinetic 1269 | 48 243 177 . . 448 353 Thermal 437 | . 230 . . . . 207 Explosive . | . . . . . . . Electromagnetic . | . . . . . . . Impact 43 | . . . . . 43 . Slashing . | . . . . . . . Piercing . | . . . . . . . Highest Corruption . | . . . . . . . Average Corruption . | . . . . . . . Corruption Purged . | . . . . . . . Corruption Blocked . | . . . . . . . Overload Shots . | . . . . . . . Overflow Damage . | . . . . . . . Projectiles . | . . . . . . . Explosions . | . . . . . . . Melee . | . . . . . . . Knockbacks 20 | . . . . . 20 . Impact . | . . . . . . . Kinetic 13 | . . . . . 13 . Secondary 7 | . . . . . 7 . Self-Inflicted Damage 61 | . . . . . . 61 Shots 1 | . . . . . . 1 Rammed . | . . . . . . . Targets Rammed 1 | . 1 . . . . . Kicked 1 | . 1 . . . . . Crushed . | . . . . . . . Highest Temperature 105 | . 27 . . . 77 105 Average Temperature 31 | . 13 . . . 27 49 Received Heat Transfer 1173 | . 105 54 . . 90 924 Siege Activations . | . . . . . . . Robots Corrupted . | . . . . . . . Combat Hostiles . | . . . . . . . Parts Fried . | . . . . . . . Impact Corruptions . | . . . . . . . Robots Melted . | . . . . . . . Combat Hostiles . | . . . . . . . Parts Melted 2 | . 2 . . . . . Heat Transferred 675 | . 525 . . . . 150 Parts Sabotaged . | . . . . . . . Parts Stolen . | . . . . . . . Parts Stripped . | . . . . . . . Power Chain Reactions . | . . . . . . . Missiles Intercepted . | . . . . . . . Alert | -11 -10 -10 -10 -9 -8 -7 ------- Run | Scr Mat Min Exi Min Mat Fac Peak Influence 240 | 5 240 50 . . 75 106 Initial 49 | . 3 49 . . . 29 Average 52 | 4 119 44 . . 40 37 Maximum Alert Level 1 | . 1 . . . . . Low Security (%) 93 | 100 69 100 . 100 100 100 Level 1 6 | . 30 . . . . . Level 2 . | . . . . . . . Level 3 . | . . . . . . . Level 4 . | . . . . . . . Level 5 . | . . . . . . . High Security . | . . . . . . . Max Security . | . . . . . . . Squads Dispatched 6 | . 1 1 . . 1 3 Investigation 1 | . . 1 . . . . Extermination . | . . . . . . . Reinforcement 3 | . 1 . . . 1 1 Assault . | . . . . . . . Garrison 2 | . . . . . . 2 Intercept . | . . . . . . . Searches Triggered . | . . . . . . . Construction Impeded . | . . . . . . . Haulers Reinforced . | . . . . . . . Active Scanning Responses . | . . . . . . . Cargo Convoy Interrupts . | . . . . . . . Stealth | -11 -10 -10 -10 -9 -8 -7 --------- Run | Scr Mat Min Exi Min Mat Fac Distress Signals 1 | . . . . . 1 . Communications Jammed . | . . . . . . . Distress Signals . | . . . . . . . Times Spotted 36 | . 18 2 . . 10 6 Peak Tracking Total 8 | . 8 2 . . 3 4 Tactical Retreats 1 | . 1 . . . . . Traps | -11 -10 -10 -10 -9 -8 -7 ------- Run | Scr Mat Min Exi Min Mat Fac Traps Triggered 1 | . . 1 . . . . Indirectly . | . . . . . . . Trap Hack Attempts . | . . . . . . . Triggered . | . . . . . . . Disarmed . | . . . . . . . Reprogrammed . | . . . . . . . Reused . | . . . . . . . Traps Extracted . | . . . . . . . Installed . | . . . . . . . Triggered . | . . . . . . . Machines | -11 -10 -10 -10 -9 -8 -7 ---------- Run | Scr Mat Min Exi Min Mat Fac Machines Disabled 1 | . . . . . . 1 Max in Single Turn 1 | . . . . . . 1 Machines Sabotaged . | . . . . . . . Garrisons Compromised . | . . . . . . . Overloaded Fab Kills . | . . . . . . . Hacking | -11 -10 -10 -10 -9 -8 -7 --------- Run | Scr Mat Min Exi Min Mat Fac Machines Accessed 8 | . 3 2 . . 2 1 Terminals 7 | . 3 1 . . 2 1 Fabricators . | . . . . . . . Repair Stations . | . . . . . . . Recycling Units . | . . . . . . . Scanalyzers . | . . . . . . . Garrison Access . | . . . . . . . Total Hacks 15 | . 8 3 . . 3 1 Successful 11 | . 6 1 . . 3 1 Failed 4 | . 2 2 . . . . Catastrophic . | . . . . . . . Database Lockouts . | . . . . . . . Manual 12 | . 6 2 1 . 2 1 Terminals 14 | . 8 2 . . 3 1 Fabricators . | . . . . . . . Repair Stations . | . . . . . . . Recycling Units . | . . . . . . . Scanalyzers . | . . . . . . . Garrison Access . | . . . . . . . Terminal Hacks 6 | . 3 1 . . 2 . Open Door 1 | . . 1 . . . . Level Access Points 1 | . . . . . 1 . Branch Access Points 1 | . 1 . . . . . Locate Traps 1 | . 1 . . . . . Zone Layout 2 | . 1 . . . 1 . Fabricator Hacks . | . . . . . . . Repair Station Hacks . | . . . . . . . Recycling Unit Hacks . | . . . . . . . Scanalyzer . | . . . . . . . Garrison Access Hacks . | . . . . . . . Unauthorized Hacks 5 | . 3 . . . 1 1 Terminals 5 | . 3 . . . 1 1 Botnet 5 | . 3 . . . 1 1 Fabricators . | . . . . . . . Repair Stations . | . . . . . . . Recycling Units . | . . . . . . . Scanalyzers . | . . . . . . . Garrison Access . | . . . . . . . Data Cores Recovered . | . . . . . . . Used . | . . . . . . . Hacking Detections 3 | . 1 1 . . 1 . Full Trace Events 1 | . . 1 . . . . Feedback Events . | . . . . . . . Feedback Blocked . | . . . . . . . Robot Schematics Acquired . | . . . . . . . Robots Built . | . . . . . . . Authchips . | . . . . . . . Time . | . . . . . . . Total Robot Build Rating . | . . . . . . . Part Schematics Acquired . | . . . . . . . Parts Built . | . . . . . . . Authchips . | . . . . . . . Time . | . . . . . . . Total Part Build Rating . | . . . . . . . Parts Repaired . | . . . . . . . Time . | . . . . . . . Parts Recycled . | . . . . . . . Recycled Matter . | . . . . . . . Retrieved Matter . | . . . . . . . Retrieved Components . | . . . . . . . Parts Scanalyzed . | . . . . . . . Part Schematics Acquired . | . . . . . . . Parts Damaged . | . . . . . . . Bothacking | -11 -10 -10 -10 -9 -8 -7 ------------ Run | Scr Mat Min Exi Min Mat Fac Used RIF Installer . | . . . . . . . Robots Hacked . | . . . . . . . Non-combat . | . . . . . . . Combat . | . . . . . . . Robot Hacks Applied . | . . . . . . . Relay Couplers Released . | . . . . . . . Fabnet Peak Effective % . | . . . . . . . Robots Rewired . | . . . . . . . Allies Hacked . | . . . . . . . Hacks Repelled . | . . . . . . . Allies | -11 -10 -10 -10 -9 -8 -7 -------- Run | Scr Mat Min Exi Min Mat Fac Total Allies . | . . . . . . . Largest Group . | . . . . . . . Highest-Rated Group . | . . . . . . . Highest-Rated Ally . | . . . . . . . Total Orders . | . . . . . . . Ally Attacks . | . . . . . . . Total Damage . | . . . . . . . Kills . | . . . . . . . Allies Corrupted . | . . . . . . . Allies Melted . | . . . . . . . Intel | -11 -10 -10 -10 -9 -8 -7 ------- Run | Scr Mat Min Exi Min Mat Fac Robot Analysis Total . | . . . . . . . Derelict Logs Recovered 3 | . . 2 . 1 . . Drone Launches . | . . . . . . . Drone Recoveries . | . . . . . . . Exploration | -11 -10 -10 -10 -9 -8 -7 ------------- Run | Scr Mat Min Exi Min Mat Fac Turns Passed 2921 | 114 565 566 290 233 755 398 Spaces Moved 1692 | 74 343 429 225 123 341 157 Core 16 | 7 . 3 . . . 6 Treads . | . . . . . . . Legs 1676 | 67 343 426 225 123 341 151 Wheels . | . . . . . . . Hover . | . . . . . . . Flight . | . . . . . . . Fastest Speed 50 | 50 120 120 120 120 190 120 Average Speed 145 | 113 120 120 122 186 190 187 Slowest Speed 400 | 120 120 250 190 190 190 400 Overloaded Moves . | . . . . . . . Propulsion Burnouts . | . . . . . . . Robots Hopped . | . . . . . . . Cave-ins Triggered . | . . . . . . . Exploration Rate (%) 35 | 4 65 74 42 31 27 3 Regions Visited 6 Branch Regions 3 Pre-discovered Areas 1 | . . 1 . . . . Known Exits Taken 3 | . 1 . 1 . 1 . Unknown Exits Taken 3 | 1 . 1 . 1 . . Scrap Searched 1 | . . 1 . . . . Spaces Dug . | . . . . . . . Terrain Destroyed 31 | . . . . . . 31 Melee . | . . . . . . . Projectile 1 | . . . . . . 1 AOE 30 | . . . . . . 30 Terrain Rammed . | . . . . . . . Walls Destroyed . | . . . . . . . Machines Disabled . | . . . . . . . Actions | -11 -10 -10 -10 -9 -8 -7 --------- Run | Scr Mat Min Exi Min Mat Fac Total 2019 | 100 433 461 243 127 416 239 Wait 132 | 4 39 8 . . 26 55 Move 1686 | 73 342 428 224 122 340 157 Hop . | . . . . . . . Pick Up 46 | 10 11 6 4 2 8 5 Fast Attach 1 | . . 1 . . . . Attach 23 | 6 2 3 5 . 4 3 Detach 3 | . . . 2 . 1 . Swap 17 | 1 4 2 2 1 4 3 Drop 22 | 2 3 5 6 2 2 2 Fire 87 | 4 31 8 . . 30 14 Melee 1 | . . . . . 1 . Ram . | . . . . . . . Kick 1 | . 1 . . . . . Crush . | . . . . . . . Escape Stasis . | . . . . . . . Rewire . | . . . . . . . Trap . | . . . . . . . Miscellaneous . | . . . . . . . Route ------- -11/Scrapyard -10/Materials (discovered 3 exits: [*Mat] / *Min x2) -10/Mines (discovered 3 exits: [*Mat x2] / *Exi) -10/Exiles (discovered 2 exits: *Min x2) -9/Mines -8/Materials (discovered 3 exits: *Fac x3) -7/Factory History --------- Turn | Location | Event 5 | -11/Scrapyard | Discovered new exit (range 15) 115 | -11/Scrapyard | Entered Materials 249 | -10/Materials | Identified exit to Mines 306 | -10/Materials | Build established: Mutant 494 | -10/Materials | Discovered new exit (range 9) 680 | -10/Materials | Entered Mines 696 | -10/Mines | Learned Materials security intel 800 | -10/Mines | Discovered new exit (range 8) 859 | -10/Mines | Learned location of Storage (-8) 1084 | -10/Mines | Discovered new exit (range 10) 1183 | -10/Mines | Met a Derelict who couldn't figure out how to use a Trap Extractor 1241 | -10/Mines | Deemed a non-threat by the Exiles lab entrance 1241 | -10/Mines | Discovered new exit (range 5) 1246 | -10/Mines | Entered Exiles 1247 | -10/Exiles | Identified exit to Mines 1277 | -10/Exiles | Met 8R-AWN 1298 | -10/Exiles | Met EX-HEX 1336 | -10/Exiles | Met EX-BIN 1350 | -10/Exiles | Aligned with FarCom system 1351 | -10/Exiles | Given EX-Vault access code 1379 | -10/Exiles | Opened EX-Vault 1388 | -10/Exiles | Found Prototype Special Weapon 1389 | -10/Exiles | Identified Field Lobotomy Kit 1393 | -10/Exiles | Found Prototype Energy Cannon 1394 | -10/Exiles | Identified Gui. Plasma Cannon 1403 | -10/Exiles | Found Prototype Storage 1404 | -10/Exiles | Identified Superbattery 1438 | -10/Exiles | Warned to stay clear of 0b10 Research branches 1536 | -10/Exiles | Left Exiles lab with Field Lobotomy Kit 1536 | -10/Exiles | Entered Mines 1555 | -9/Mines | Assembled infested the area 1560 | -9/Mines | Assisted by a Guerilla fighting off Assembled 1582 | -9/Mines | Learned Materials terminal intel 1750 | -9/Mines | Discovered new exit (range 11) 1769 | -9/Mines | Entered Materials 1769 | -8/Materials | Evolved 4 slots: Propulsion x1, Utility x3 1771 | -8/Materials | Loaded intel: 12 terminal locations 2265 | -8/Materials | Identified exit to Factory 2524 | -8/Materials | Entered Factory 2524 | -7/Factory | Evolved 2 slots: Power x1, Utility x1 2563 | -7/Factory | Build established: Hacker-Mutant 2813 | -7/Factory | Garrison activated, responded to threat 2906 | -7/Factory | Core integrity fell below 50% 2914 | -7/Factory | Core integrity fell below 20% 2922 | -7/Factory | Destroyed by Y-54 Guardian with Flak Gun Last Messages --------------- 02883_ Nuclear Reactor explodes. 02883_ Fabricator disabled. 02887_ Deuterium Engine destroyed. 02889_ Carbon-fiber Leg destroyed. 02890_ Enh. Autogun destroyed. 02893_ G-47 Trooper suffers critical hit (Burn). 02893_ Imp. Medium Armor Plating destroyed. 02895_ Nuclear Reactor explodes. 02895_ Imp. Targeting Computer destroyed. 02902_ U-05 Engineer builds a Wall. 02902_ O-16 Technician: "IFF HANDSHAKE FAILED. SECURING TERMINAL." 02906_ U-05 Engineer lays Concrete. 02906_ ALERT: Hostiles spotted, dispatching reinforcements to Terminal F003. 02906_ Lrg. Matter Pod destroyed. 02908_ U-05 Engineer lays Concrete. 02912_ The unstable cave ceiling collapses. 02918_ G-47 Trooper heat spikes uncontrollably. 02919_ Med. Storage Unit destroyed. 02919_ Critical hit (Burn: +37). 02919_ G-47 Trooper overheating. Map ----- +----------------------------------------------------+ | | | | | | | | | | | | | | | | | | | | | | | | | | | | | | | | | | | | | ?????????????????????????????????????????????????? | | ?????????####?####??????????????#####????????????? | | ????????# # ###???????##### # ###??????????? | | ######## # #########;;;;;;;;;##########?? | | """" ### | | #### F " ;;;;;;;; | | ???# gg ; % ; | | ???# @Y ; u# """? | | ####+# [##; + | | ##" # """" | | + ### "" | | # #######?# "" """" | | ## ##???????###""""## ? | | ## #?????????# ## ##? "" """? | | ## """ #?????????##?#/#?? "T ?? | | ## """ !! #???????????? ?? "" """? | | ## """ !! #????????????"" ? ?? | | ! ## #????????????"" ## ?? | | ## #????????????"" #? ####??####?? | | ####################?????????????? #??#??????????? | | #####????????????????????????????? #?Y???????????? | | #????????????????????????????? #?????????????? | | #????????????????????????????? #?????????????? | | ?????????????????????????? ??????????????? | | ###??????????????????????????????????????????? | | #????????????????????????????????????????????? | | #????????????????????????????????????????????? | | #????????????????????????????????????????????? | | #????????????????????????????????????????????? | | ? +????????????????????????????????????????????? | | ?? #????????????????????????????????????????????? | | ??? #????????????????????????????????????????????? | +----------------------------------------------------+ Best States ------------- Heat Dissipation 34 Energy Generation 19 Energy Capacity 425 Matter Stores 431 Matter Capacity 450 Sight Range 16 Terrain Scan Density 10 Armor Coverage 225 Utility Shielding 33 Evasion (%) 55 Targeting Accuracy 6 Offensive Hacking 10 Defensive Hacking 10 Item Schematics ----------------- None Robot Schematics ------------------ None Fabricated ------------ Nothing Alien Tech Used ----------------- None Achievements -------------- None Challenges ------------ None Game ------ Seed RelayMasterBeam Manual? 0 Play Time 00:33:13 Cumulative 40.4 hours Start 2022.09.03 @ 02:50:14 End 2022.09.03 @ 03:29:44 Sessions 1 Manual Loads 0 Difficulty Rogue Special Mode None Game No. 92 Rogue 92 Adventurer 0 Explorer 0 Win Type - Total 0 Types 0/0/0/0/0/0/0/0/0 Lore% 25 Gallery% 25 Achievement% 23 Wizard Run 0 Options --------- ASCII 0 Keyboard 0 Movement Numpad Keybinds 0 Fullscreen 1 Font 12/Smallcaps Map View 83x54 Tactical HUD 1 Map Filters NONE Filters NONE Steam 1 RUN: 7d139c09-7913-4306-a39f-a4902ce52bc4